Workbook

Sheet ANALISE
O2: VARIAÇÃO ENTRE AS COMPRAS | P2: =IF(U6=0,0,IF(IF(U3=0,0,(U3-U6)/U3*100)=100,0,IF(U3=0,0,(U3-U6)/U3*100))) -> 0 | R2: MÉDIA S/ CORREÇÃO | S2: =IF(F11=0,0,SUM(G5:L5)/F11) -> 41.16666667 | T2: DURAÇÃO ESTOQUE (MÊS)-> | U2: =IF(S2=0,0,IF(S2=0,0,(P3-S3)/S2)) -> 0.6973684211
O3: POSIÇÃO ESTOQUE | P3: 39 | R3: E. MÍNIMO S/ CORREÇÃO | S3: =(S2*P4) -> 10.29166667 | T3: =IF(P3>S3,"PRÓXIMA COMPRA","COMPRAR AGORA") -> PRÓXIMA COMPRA | U3: =IF(P3>S3,0,IF(IF(S2=0,0,IF(U2<P5,((P5+P4)*S2)-P3,0))+((((P5+P4)*S2)-P3)*P6/100)<0,0,IF(S2=0,0,IF(U2<P5,((P5+P4)*S2)-P3,0))+((((P5+P4)*S2)-P3)*P6/100))) -> 0 | V3: =IF(S3=0,"",IF(P3>S3,(TODAY()+U2*30),"AGORA")) -> 2017-05-05T22:06:18.947 | W3: =IF(IF(S2=0,0,IF(U2<P5,((P5+P4)*S2)-P3,0))+((((P5+P4)*S2)-P3)*P6/100)<0,0,IF(S2=0,0,IF(U2<P5,((P5+P4)*S2)-P3,0))+((((P5+P4)*S2)-S3)*P6/100)) -> 12.45833333
G4: 1 | H4: 2 | I4: 3 | J4: 4 | K4: 5 | L4: 6 | O4: TEMPO DE REPOSIÇÃO (Mês) | P4: 0.25 | R4: FATOR DESVIO | S4: =IF(Q10<2,0,J13) -> 98.45001797 | AC4: =IF(S6<P3,"ESTOQUE MÍNIMO NÃO ATINGIDO","") -> ESTOQUE MÍNIMO NÃO ATINGIDO
G5: 12 | H5: 34 | I5: 16 | J5: 45 | K5: 120 | L5: 20 | O5: PERÍODO DE COMPRA (Mês) | P5: 1 | R5: MÉDIA CORRIGIDA | S5: =IF(S4>50,R16/5,0) -> 27.8 | T5: DURAÇÃO ESTOQUE (MÊS)-> | U5: =IF(S5=0,0,P3/S5) -> 1.402877698
G6: =IF(S4<50," VARIAÇÃO NORMAL"," VARIAÇÃO IRREGULAR") -> VARIAÇÃO IRREGULAR | O6: MARGEM SEGURANÇA S/ COMPRAS (%) | R6: E. MÍNIMO CORRIGIDO | S6: =(S5*P4) -> 6.95 | T6: =IF(P3>S6,"PRÓXIMA COMPRA","COMPRAR AGORA") -> PRÓXIMA COMPRA | U6: =IF(P3>S6,0,IF(IF(S5=0,0,IF(U5<P5,((P5+P4)*S5)-P3,0))+((((P5+P4)*S5)-P3)*P6/100)<0,0,IF(S5=0,0,IF(U5<P5,((P5+P4)*S5)-P3,0))+((((P5+P4)*S5)-P3)*P6/100))) -> 0 | V6: =IF(S6=0,"",IF(P3>S6,(TODAY()+U5*30),"AGORA")) -> 2017-05-27T02:04:18.993
G7: =IF(G5="",3,IF(G5>0,1,2)) -> 1 | H7: =IF(H5="",3,IF(H5>0,1,2)) -> 1 | I7: 1 | J7: 1 | K7: 1 | L7: 1
J8: =$S$2 -> 41.16666667 | K8: =$S$2 -> 41.16666667 | L8: 41.16666667 | M8: 41.16666667 | N8: 41.16666667 | O8: 41.16666667
C9: USADO PARA CALCULAR MÉDIA | F9: =COUNTIFS(G7:L7,1) -> 6 | H9: =S2-S11 -> 0.6380759353 | I9: DPINF | J9: =$S$2-$S$11 -> 0.6380759353 | K9: 0.6380759353 | L9: 0.6380759353 | M9: 0.6380759353 | N9: 0.6380759353 | O9: 0.6380759353
F10: =COUNTIFS(G7:L7,2) -> 0 | H10: =S2+S11 -> 81.6952574 | I10: DPSUP | J10: =$S$2+$S$11 -> 81.6952574 | K10: 81.6952574 | L10: 81.6952574 | M10: 81.6952574 | N10: 81.6952574 | O10: 81.6952574 | Q10: =COUNTIF(G5:L5,">0") -> 6
E11: FATOR DIV. | F11: =F10+F9 -> 6 | J11: =$S$5 -> 27.8 | K11: 27.8 | L11: 27.8 | M11: 27.8 | N11: 27.8 | O11: 27.8 | Q11: DESVIO PADRÃO | S11: =IF(Q10<2,0,STDEV(G5:L5)) -> 40.52859073
J13: =$S$11/$S$2*100 -> 98.45001797 | K13: 98.45001797 | L13: 98.45001797 | M13: 98.45001797 | N13: 98.45001797 | O13: 98.45001797 | Q13: somatoria | R13: =SUM(G5:L5) -> 247
Q14: valor maximo | R14: =MAX(G5:L5) -> 120
J15: =IF(G5<$S$2,5,10) -> 5 | K15: 5 | L15: 5 | M15: 10 | N15: 10 | O15: 5 | Q15: valor minimo | R15: =MIN(G5:L5) -> 12
J16: =AVERAGE($J$15:$O$15) -> 6.666666667 | K16: 6.666666667 | L16: 6.666666667 | M16: 6.666666667 | N16: 6.666666667 | O16: 6.666666667 | Q16: Maximo-minimo | R16: =R13-(R14-R15) -> 139 | S16: =R16/5 -> 27.8
